Workbook

Sheet MSU
B1: Heikki Rantanen | E1: 8.3.1994 Pöytyä
B2: SUPERPESIS | E2: Runkosarja | I2: Kärkilyönnit (KL), pesänvälit | P2: Ylempi loppusarja | W2: Alempi loppusarja | AD2: Arvo-ottelut | AH2: Mitalit
B3: Vuosi | C3: Sija | D3: Seura | E3: OTT | F3: KUN | G3: LÖI | H3: TOI | I3: KL | J3: 0 > 1 | K3: 1 > 2 | L3: 2 > 3 | M3: 3 > k | N3: KL-% | P3: OTT | Q3: KUN | R3: LÖI | S3: TOI | T3: KL | U3: KL-% | W3: OTT | X3: KUN | Y3: LÖI | Z3: TOI | AA3: KL | AB3: KL-% | AD3: IL | AE3: LL | AF3: hSM | AG3: K | AH3: H | AI3: P
B4: 2011 | C4: 2. | D4: JoKo | F4: suomensarja
B5: 2012 | C5: 3. | D5: JoKo | F5: suomensarja
B6: 2013 | C6: 11. | D6: PuMu | F6: ykköspesis
B7: 2013 | C7: 5. | D7: Tahko | E7: 2 | F7: 0 | G7: 0 | H7: 0 | I7: 0 | J7: 0 | K7: 0 | L7: 0 | M7: 0 | N7: 0.0 %
B8: 2014 | C8: 1. | D8: PöU | F8: suomensarja
B9: 2014 | C9: 11. | D9: PuMu | F9: ykköspesis
B10: 2015 | C10: 10. | D10: PöU | F10: ykköspesis
B11: 2016 | C11: 7. | D11: PöU | F11: ykköspesis
B12: 2017 | C12: 2. | D12: PuMu | F12: suomensarja
B13: 2018 | C13: 2. | D13: Lohi | F13: suomensarja
B14: 2019 | C14: 5. | D14: LU | F14: ykköspesis
B15: 2019 | C15: 13. | D15: SiiPe | E15: 1 | F15: 0 | G15: 0 | H15: 0 | I15: 0 | J15: 0 | K15: 0 | L15: 0 | M15: 0 | N15: 0.0 % | O15: 1
B16: 2020 | C16: 1. | D16: Lohi | F16: suomensarja
B17: 2021 | C17: 2. | D17: Lohi | F17: ykköspesis
B18: 2022 | C18: 4. | D18: PuPe | F18: ykköspesis
B19: Yhteensä | E19: 3 | F19: 0 | G19: 0 | H19: 0 | I19: 0 | J19: 0 | K19: 0 | L19: 0 | M19: 0 | N19: 0.0 % | P19: 0 | Q19: 0 | R19: 0 | S19: 0 | T19: 0 | U19: 0.0 % | W19: =PRODUCT(E25) -> 2 | X19: =PRODUCT(F25) -> 0 | Y19: 0 | Z19: 0 | AA19: 0 | AB19: =PRODUCT(N25) -> 0.0 % | AD19: 0 | AE19: 0 | AF19: 0 | AG19: 0 | AH19: 0 | AI19: 0
B20: Pesispörssi | D20: 1.0
B22: URA SUPERISSA | E22: OTT | F22: KUN | G22: LÖI | H22: TOI | I22: KL | K22: ka/L | L22: ka/T | M22: ka/KL | N22: KL-% | O22: 34.04255319 | P22: ENSIMMÄISET RUNKOSARJASSA
B23: Runkosarja | E23: 3 | F23: 0 | G23: 0 | H23: 0 | I23: 0 | K23: 0.00 | L23: 0.00 | M23: 0.00 | N23: 0.0 % | P23: Ottelu | R23: 04.07. 2013 KaMa - Tahko 1-2 (2-1, 5-7, 2-2, 2-3) | AA23: 1. ottelu | AD23: 19 v 3 kk 26 pv
B24: Ylempi loppusarja | P24: Lyöty
B25: Alempi loppusarja | E25: 2 | F25: 0 | G25: 0 | H25: 0 | I25: 0 | K25: 0.0 | L25: 0.0 | M25: 0.0 | N25: 0.0 % | O25: 34.04255319 | P25: Tuotu
B26: KAIKKI | E26: 5 | F26: 0 | G26: 0 | H26: 0 | I26: 0 | K26: 0.00 | L26: 0.00 | M26: 0.00 | N26: 0.0 % | P26: Kunnari
B28: Seurat | D28: PöU = Pöytyän Urheilijat (1945), kasvattajaseura | M28: Lohi = Jyväskylän Lohi (1924)
D29: PuMu = Helsingin Puna-Mustat (1941) | M29: SiiPe = Siilinjärven Pesis (1987)
D30: Tahko = Hyvinkään Tahko (1915) | M30: LU = Laukaan Urheilijat (1929)
D31: UPV = Ulvilan Pesä-Veikot (1957) | M31: PuPe = Puijon Pesis (2009)

Sheet MYP, MSS
B1: Heikki Rantanen | E1: 8.3.1994 Pöytyä
B2: YKKÖSPESIS | E2: Runkosarja | L2: Runkosarja TOP-10 | Q2: Jatkosarjat | X2: SUOMENSARJA | AA2: Runkosarja | AH2: Runkosarja TOP-10 | AM2: Jatkosarjat
B3: Vuosi | C3: Sija | D3: Seura | E3: OTT | F3: KUN | G3: LÖI | H3: TOI | I3: KL | J3: KL-% | L3: LÖI | M3: TOI | N3: L+T | O3: KL | Q3: OTT | R3: KUN | S3: LÖI | T3: TOI | U3: KL | V3: KL-% | X3: Vuosi | Y3: Sija | Z3: Seura | AA3: OTT | AB3: KUN | AC3: LÖI | AD3: TOI | AE3: KL | AF3: KL-% | AH3: LÖI | AI3: TOI | AJ3: L+T | AK3: KL | AM3: OTT | AN3: KUN | AO3: LÖI | AP3: TOI | AQ3: KL | AR3: KL-%
X4: 2011 | Y4: 2. | Z4: JoKo | AA4: 17 | AB4: 0 | AC4: 6 | AD4: 6 | AE4: 32 | AF4: 40.0 % | AG4: 80 | AM4: 6 | AN4: 1 | AO4: 2 | AP4: 4 | AQ4: 10 | AR4: 38.5 % | AS4: 26
X5: 2012 | Y5: 3. | Z5: JoKo | AA5: 16 | AB5: 0 | AC5: 14 | AD5: 23 | AE5: 52 | AF5: 55.3 % | AG5: 94 | AM5: 3 | AN5: 0 | AO5: 2 | AP5: 0 | AQ5: 10 | AR5: 47.6 % | AS5: 21
B6: 2013 | C6: 11. | D6: PuMu | E6: 14 | F6: 0 | G6: 2 | H6: 3 | I6: 22 | J6: 40.0 % | K6: 55
B7: 2014 | C7: 4. | D7: UPV | E7: 14 | F7: 0 | G7: 5 | H7: 5 | I7: 42 | J7: 64.6 % | K7: 65 | Q7: 3 | R7: 0 | S7: 0 | T7: 0 | U7: 7 | V7: 53.8 % | W7: 13 | X7: 2014 | Y7: 1. | Z7: PöU | AA7: 5 | AB7: 0 | AC7: 2 | AD7: 4 | AE7: 15 | AF7: 55.6 % | AG7: 27
B8: 2015 | C8: 10. | D8: PöU | E8: 14 | F8: 0 | G8: 0 | H8: 5 | I8: 30 | J8: 48.4 % | K8: 62
B9: 2016 | C9: 7. | D9: PöU | E9: 15 | F9: 0 | G9: 0 | H9: 4 | I9: 29 | J9: 40.3 % | K9: 72
X10: 2017 | Y10: 2. | Z10: PuMu | AA10: 10 | AB10: 0 | AC10: 2 | AD10: 7 | AE10: 33 | AF10: 51.6 % | AG10: 64 | AM10: 1 | AN10: 0 | AO10: 0 | AP10: 1 | AQ10: 2 | AR10: 50.0 % | AS10: 4
X11: 2018 | Y11: 2. | Z11: Lohi | AA11: 14 | AB11: 0 | AC11: 2 | AD11: 12 | AE11: 36 | AF11: 51.4 % | AG11: =PRODUCT(AE11/AF11) -> 70 | AM11: 5 | AN11: 0 | AO11: 3 | AP11: 5 | AQ11: 18 | AR11: 62.1 % | AS11: =PRODUCT(AQ11/AR11) -> 29.00418949
B12: 2019 | C12: 7. | D12: LU | E12: 4 | F12: 0 | G12: 1 | H12: 3 | I12: 11 | J12: 50.0 % | K12: 22
X13: 2020 | Y13: 1. | Z13: Lohi | AA13: 2 | AB13: 0 | AC13: 0 | AD13: 1 | AE13: 3 | AF13: 30.0 % | AG13: 10 | AM13: 4 | AN13: 0 | AO13: 2 | AP13: 2 | AQ13: 15 | AR13: 55.6 % | AS13: 27
B14: 2021 | C14: 2. | D14: Lohi | E14: 20 | F14: 0 | G14: 3 | H14: 0 | I14: 7 | J14: 31.8 % | K14: 22 | Q14: 3 | R14: 0 | S14: 0 | T14: 0 | U14: 1 | V14: 33.3 % | W14: 3
B15: 2022 | C15: 4. | D15: PuPe | E15: 8 | F15: 0 | G15: 2 | H15: 0 | I15: 10 | J15: 43.5 % | K15: 23 | Q15: 3 | R15: 0 | S15: 0 | T15: 0 | U15: 0 | V15: 0.0 % | W15: 2
B16: YHTEENSÄ | E16: =SUM(E4:E15) -> 89 | F16: =SUM(F4:F15) -> 0 | G16: =SUM(G4:G15) -> 13 | H16: =SUM(H4:H15) -> 20 | I16: =SUM(I4:I15) -> 151 | J16: =PRODUCT(I16/K16) -> 47.0 % | K16: =SUM(K4:K15) -> 321 | Q16: =SUM(Q4:Q15) -> 9 | R16: =SUM(R4:R15) -> 0 | S16: =SUM(S4:S15) -> 0 | T16: =SUM(T4:T15) -> 0 | U16: =SUM(U4:U15) -> 8 | V16: =PRODUCT(U16/W16) -> 44.4 % | W16: =SUM(W4:W15) -> 18 | X16: YHTEENSÄ | AA16: =SUM(AA4:AA15) -> 64 | AB16: =SUM(AB4:AB15) -> 0 | AC16: =SUM(AC4:AC15) -> 26 | AD16: =SUM(AD4:AD15) -> 53 | AE16: =SUM(AE4:AE15) -> 171 | AF16: =PRODUCT(AE16/AG16) -> 49.6 % | AG16: =SUM(AG4:AG15) -> 345.0116686 | AM16: =SUM(AM4:AM15) -> 19 | AN16: =SUM(AN4:AN15) -> 1 | AO16: =SUM(AO4:AO15) -> 9 | AP16: =SUM(AP4:AP15) -> 12 | AQ16: =SUM(AQ4:AQ15) -> 55 | AR16: =PRODUCT(AQ16/AS16) -> 51.4 % | AS16: =SUM(AS4:AS15) -> 107.0041895
B18: KAIKKI OTTELUT | E18: OTT | F18: KUN | G18: LÖI | H18: TOI | I18: KL | J18: KL-% | L18: ka/L | M18: ka/T | N18: ka/l+t | O18: ka/kl | R18: Seurat | T18: PöU = Pöytyän Urheilijat (1945), kasvattajaseura
B19: SUPERPESIS | E19: 5 | F19: 0 | G19: 0 | H19: 0 | I19: 0 | J19: 0.0 % | K19: 7 | L19: =PRODUCT((F19+G19)/E19) -> 0.00 | M19: =PRODUCT(H19/E19) -> 0.00 | N19: =PRODUCT((F19+G19+H19)/E19) -> 0.00 | O19: =PRODUCT(I19/E19) -> 0.00 | T19: PuMu = Helsingin Puna-Mustat (1941)
B20: YKKÖSPESIS | E20: =PRODUCT(E16+Q16) -> 98 | F20: =PRODUCT(F16+R16) -> 0 | G20: =PRODUCT(G16+S16) -> 13 | H20: =PRODUCT(H16+T16) -> 20 | I20: =PRODUCT(I16+U16) -> 159 | J20: =PRODUCT(I20/K20) -> 46.9 % | K20: =PRODUCT(K16+W16) -> 339 | L20: =PRODUCT((F20+G20)/E20) -> 0.13 | M20: =PRODUCT(H20/E20) -> 0.20 | N20: =PRODUCT((F20+G20+H20)/E20) -> 0.34 | O20: =PRODUCT(I20/E20) -> 1.62 | T20: Tahko = Hyvinkään Tahko (1915)
B21: SUOMENSARJA | E21: =PRODUCT(AA16+AM16) -> 83 | F21: =PRODUCT(AB16+AN16) -> 1 | G21: =PRODUCT(AC16+AO16) -> 35 | H21: =PRODUCT(AD16+AP16) -> 65 | I21: =PRODUCT(AE16+AQ16) -> 226 | J21: =PRODUCT(I21/K21) -> 50.0 % | K21: =PRODUCT(AG16+AS16) -> 452.0158581 | L21: =PRODUCT((F21+G21)/E21) -> 0.43 | M21: =PRODUCT(H21/E21) -> 0.78 | N21: =PRODUCT((F21+G21+H21)/E21) -> 1.22 | O21: =PRODUCT(I21/E21) -> 2.72 | T21: UPV = Ulvilan Pesä-Veikot (1957)
B22: YHTEENSÄ | E22: =SUM(E19:E21) -> 186 | F22: =SUM(F19:F21) -> 1 | G22: 48 | H22: 85 | I22: 385 | J22: =PRODUCT(I22/K22) -> 48.2 % | K22: =SUM(K19:K21) -> 798.0158581 | L22: =PRODUCT((F22+G22)/E22) -> 0.26 | M22: =PRODUCT(H22/E22) -> 0.46 | N22: =PRODUCT((F22+G22+H22)/E22) -> 0.72 | O22: =PRODUCT(I22/E22) -> 2.07 | T22: Lohi = Jyväskylän Lohi (1924)
T23: LU = Laukaan Urheilijat (1929)
T24: PuPe = Puijon Pesis (2009)
